[Event "44th Chess Olympiad Women 2022"]
[Site "Chennai"]
[Date "2022.08.07"]
[Round "9.18"]
[White "Brunello, Marina"]
[Black "Foudzi, Siti Zulaikha"]
[Result "1-0"]
[WhiteElo "2341"]
[BlackElo "2188"]
[Annotator "RC"]
[PlyCount "131"]
[EventDate "2022.??.??"]
[TimeControl "60"]

1. e4 {[%emt 0:00:05]} g6 {[%emt 0:00:04]} 2. d4 {[%emt 0:00:10]} Bg7 {[%emt 0:
00:00]} 3. Nc3 {[%emt 0:00:15]} c6 {[%emt 0:00:04]} 4. Nf3 {[%emt 0:04:35]} d6
{[%emt 0:00:24]} 5. Be3 {[%emt 0:00:32]} Nf6 {[%emt 0:00:07]} 6. Qd2 {[%emt 0:
00:00]} b5 {[%emt 0:01:39]} 7. Bd3 {[%emt 0:01:58]} a6 {[%emt 0:05:38]} 8. Bh6
{[%emt 0:01:25]} O-O {[%emt 0:04:37]} 9. h4 {[%emt 0:00:46]} Bxh6 {[%emt 0:00:
00]} 10. Qxh6 {[%emt 0:00:06]} Ng4 {[%emt 0:00:05]} 11. Qd2 {[%emt 0:01:02]} h5
{[%emt 0:01:12]} 12. e5 {[%emt 0:08:12]} dxe5 {[%emt 0:04:51]} 13. dxe5 {
[%emt 0:02:28]} c5 {[%emt 0:06:35]} 14. Qf4 {[%emt 0:06:48]} c4 {[%emt 0:15:40]
} 15. Be4 {[%emt 0:00:55]} Ra7 {[%emt 0:00:05]} 16. Nd5 {[%emt 0:00:14]} Be6 {
[%emt 0:00:15]} 17. Ne3 {[%emt 0:00:50]} Qb6 {[%emt 0:05:41]} 18. Rd1 {[%emt 0:
00:00]} Nd7 {[%emt 0:03:46]} 19. O-O {[%emt 0:00:58]} Nc5 {[%emt 0:04:14]} 20.
Ng5 {[%emt 0:04:35]} Nxe4 {[%emt 0:02:10]} 21. Qxe4 {[%emt 0:07:49]} Nxe3 {
[%emt 0:02:12]} 22. fxe3 {[%emt 0:00:03]} Bf5 {[%emt 0:04:51]} 23. Qf4 {
[%emt 0:07:17]} f6 {[%emt 0:10:47]} 24. Ne4 {[%emt 0:02:04]} Bxe4 {[%emt 0:00:
00]} 25. Qxe4 {[%emt 0:00:14]} f5 {[%emt 0:01:45]} 26. Qf4 {[%emt 0:01:02]} Kh7
{[%emt 0:01:47]} 27. c3 {[%emt 0:02:42]} Rd8 {[%emt 0:03:40]} 28. Rd4 {[%emt 0:
00:00]} Rad7 {[%emt 0:00:55]} 29. Rfd1 {[%emt 0:01:27]} Qc6 {[%emt 0:01:46]}
30. a3 {[%emt 0:01:01]} Rd5 {[%emt 0:02:28]} 31. Qg5 {[%emt 0:01:43]} Qe6 {
[%emt 0:08:04]} 32. Rxd5 {[%emt 0:00:51]} Rxd5 {[%emt 0:00:02]} 33. Rxd5 {
[%emt 0:00:07]} Qxd5 {[%emt 0:00:03]} 34. Qxe7+ {[%emt 0:00:06]} Kg8 {[%emt 0:
00:00]} 35. Qf6 {[%emt 0:03:38]} Kh7 {[%emt 0:00:56]} 36. Qd6 {[%emt 0:03:43]}
Qe4 {[%emt 0:00:47]} 37. Qd4 {[%emt 0:00:03]} Qc6 {[%emt 0:01:25]} 38. Kf2 {
[%emt 0:00:04]} Kg8 {[%emt 0:00:16]} 39. e4 {[%emt 0:00:58]} fxe4 {[%emt 0:00:
00]} 40. Ke3 {[%emt 0:00:06]} Kf7 {[%emt 0:00:38]} 41. Qxe4 {[%emt 0:40:37]}
Qb6+ {[%emt 0:30:28]} 42. Kf3 {[%emt 0:01:11]} Qg1 {[%emt 0:00:56]} 43. Qd5+ {
[%emt 0:01:42]} Ke8 {[%emt 0:01:28]} 44. Qe6+ {[%emt 0:00:52]} Kd8 {[%emt 0:00:
00]} 45. Qd6+ {[%emt 0:00:06]} Kc8 {[%emt 0:00:59]} 46. Qxa6+ {[%emt 0:00:05]}
Kc7 {[%emt 0:00:00]} 47. Qd6+ {[%emt 0:00:00]} Kb7 {[%emt 0:00:00]} 48. Qd2 {
[%emt 0:00:00]} Qf1+ {[%emt 0:00:00]} 49. Kg3 {[%emt 0:00:00]} Qf5 {[%emt 0:00:
00]} 50. Qf4 {[%emt 0:00:00]} Qb1 {[%emt 0:00:00]} 51. Qf2 {[%emt 0:00:00]} Kc6
{[%emt 0:00:00]} 52. Kh2 {[%emt 0:00:00]} Qc1 {[%emt 0:00:00]} 53. Qf6+ {
[%emt 0:00:00]} Kb7 {[%emt 0:00:00]} 54. Qf3+ {[%emt 0:00:00]} Kc7 {[%emt 0:00:
00]} 55. Qf7+ {[%emt 0:00:00]} Kb8 {[%emt 0:00:00]} 56. Qe8+ {[%emt 0:00:00]}
Kc7 {[%emt 0:00:00]} 57. Qe7+ {[%emt 0:00:00]} Kc8 {[%emt 0:00:00]} 58. Qc5+ {
[%emt 0:00:00]} Kd8 {[%emt 0:00:00]} 59. Qd4+ {[%emt 0:00:00]} Kc8 {[%emt 0:00:
00]} 60. Qe4 {[%emt 0:00:00]} Qxb2 {[%emt 0:00:00]} 61. e6 {[%emt 0:00:00]}
Qxa3 {[%emt 0:00:00]} 62. Qc6+ {[%emt 0:00:00]} Kb8 {[%emt 0:00:00]} 63. Qxb5+
{[%emt 0:00:00]} Ka7 {[%emt 0:00:41]} 64. Qd7+ {[%emt 0:00:00]} Kb6 {[%emt 0:
00:00]} 65. e7 {[%emt 0:00:00]} Qc1 {[%emt 0:01:07]} 66. Qd4+ {[%emt 0:00:00]}
1-0

[Event "44th Chess Olympiad Women 2022"]
[Site "Chennai"]
[Date "2022.08.07"]
[Round "9.18"]
[White "Raccanello, Marianna"]
[Black "Azhar, Puteri Rifqah Fahad"]
[Result "1/2-1/2"]
[WhiteElo "2067"]
[BlackElo "1940"]
[Annotator "NA"]
[PlyCount "68"]
[EventDate "2022.??.??"]
[TimeControl "60"]

1. e4 {[%emt 0:00:03]} d5 {[%emt 0:00:41]} 2. exd5 {[%emt 0:00:09]} Qxd5 {
[%emt 0:00:06]} 3. Nc3 {[%emt 0:00:07]} Qa5 {[%emt 0:00:17]} 4. d4 {[%emt 0:00:
00]} c6 {[%emt 0:00:49]} 5. Bc4 {[%emt 0:00:13]} Nf6 {[%emt 0:00:17]} 6. Bd2 {
[%emt 0:00:20]} Qc7 {[%emt 0:02:29]} 7. Nf3 {[%emt 0:00:34]} Bg4 {[%emt 0:00:
00]} 8. h3 {[%emt 0:00:13]} Bxf3 {[%emt 0:01:05]} 9. Qxf3 {[%emt 0:00:14]} e6 {
[%emt 0:00:44]} 10. O-O-O {[%emt 0:00:47]} Nbd7 {[%emt 0:02:11]} 11. Rhe1 {
[%emt 0:01:16]} O-O-O {[%emt 0:04:08]} 12. Bf4 {[%emt 0:03:17]} Bd6 {[%emt 0:
00:00]} 13. Bxd6 {[%emt 0:00:41]} Qxd6 {[%emt 0:00:10]} 14. g4 {[%emt 0:09:12]}
h6 {[%emt 0:05:30]} 15. Bb3 {[%emt 0:03:15]} Nb6 {[%emt 0:03:42]} 16. h4 {
[%emt 0:04:53]} Rhf8 {[%emt 0:07:47]} 17. g5 {[%emt 0:15:52]} hxg5 {[%emt 0:00:
00]} 18. hxg5 {[%emt 0:00:18]} Nfd5 {[%emt 0:01:40]} 19. Ne2 {[%emt 0:07:54]}
Nc7 {[%emt 0:04:20]} 20. Nf4 {[%emt 0:12:26]} g6 {[%emt 0:05:48]} 21. c3 {
[%emt 0:01:56]} Nbd5 {[%emt 0:16:03]} 22. Nd3 {[%emt 0:00:25]} Qe7 {[%emt 0:00:
00]} 23. Qg3 {[%emt 0:03:20]} Nb6 {[%emt 0:03:41]} 24. Ne5 {[%emt 0:08:13]} Nd7
{[%emt 0:02:30]} 25. f4 {[%emt 0:00:12]} Nxe5 {[%emt 0:01:03]} 26. fxe5 {
[%emt 0:03:52]} Rh8 {[%emt 0:02:56]} 27. Rh1 {[%emt 0:00:48]} Nd5 {[%emt 0:00:
00]} 28. Rdf1 {[%emt 0:02:58]} Rxh1 {[%emt 0:03:48]} 29. Rxh1 {[%emt 0:00:08]}
c5 {[%emt 0:00:16]} 30. Bxd5 {[%emt 0:09:21]} Rxd5 {[%emt 0:00:11]} 31. Qf4 {
[%emt 0:01:54]} cxd4 {[%emt 0:00:40]} 32. cxd4 {[%emt 0:00:09]} b6 {[%emt 0:00:
00]} 33. Kb1 {[%emt 0:00:46]} Rd7 {[%emt 0:02:30]} 34. a3 {[%emt 0:06:01]} Kb7
{[%emt 0:02:26]} 1/2-1/2

[Event "44th Chess Olympiad Women 2022"]
[Site "Chennai"]
[Date "2022.08.07"]
[Round "9.18"]
[White "Sim, Jia Ru"]
[Black "Cassi, Elisa"]
[Result "0-1"]
[WhiteElo "2005"]
[BlackElo "1922"]
[Annotator "NA"]
[PlyCount "80"]
[EventDate "2022.??.??"]
[TimeControl "60"]

1. e4 {[%emt 0:00:04]} e5 {[%emt 0:00:05]} 2. Nf3 {[%emt 0:00:09]} Nc6 {
[%emt 0:00:04]} 3. Bb5 {[%emt 0:00:06]} a6 {[%emt 0:00:05]} 4. Ba4 {[%emt 0:00:
00]} Nf6 {[%emt 0:00:06]} 5. O-O {[%emt 0:00:08]} Be7 {[%emt 0:00:04]} 6. Re1 {
[%emt 0:00:18]} b5 {[%emt 0:00:09]} 7. Bb3 {[%emt 0:00:06]} d6 {[%emt 0:00:10]}
8. c3 {[%emt 0:00:13]} O-O {[%emt 0:00:08]} 9. h3 {[%emt 0:00:19]} Nb8 {
[%emt 0:00:08]} 10. d4 {[%emt 0:00:57]} Nbd7 {[%emt 0:00:08]} 11. Nbd2 {
[%emt 0:01:02]} Bb7 {[%emt 0:00:14]} 12. Bc2 {[%emt 0:00:41]} Re8 {[%emt 0:00:
00]} 13. Nf1 {[%emt 0:01:05]} Bf8 {[%emt 0:00:13]} 14. Ng3 {[%emt 0:00:22]} g6
{[%emt 0:00:08]} 15. a4 {[%emt 0:02:51]} Bg7 {[%emt 0:04:40]} 16. d5 {[%emt 0:
00:00]} Qb8 {[%emt 0:08:05]} 17. axb5 {[%emt 0:13:34]} axb5 {[%emt 0:00:14]}
18. Rxa8 {[%emt 0:00:38]} Qxa8 {[%emt 0:10:30]} 19. b4 {[%emt 0:02:30]} Nb6 {
[%emt 0:03:58]} 20. Qd3 {[%emt 0:09:15]} c6 {[%emt 0:15:01]} 21. dxc6 {[%emt 0:
00:00]} Bxc6 {[%emt 0:00:12]} 22. Qxd6 {[%emt 0:00:46]} Rd8 {[%emt 0:03:35]}
23. Qc5 {[%emt 0:15:51]} Nc4 {[%emt 0:03:05]} 24. Nxe5 {[%emt 0:02:55]} Nxe5 {
[%emt 0:08:41]} 25. Qxe5 {[%emt 0:01:13]} Nxe4 {[%emt 0:06:00]} 26. Qf4 {
[%emt 0:03:25]} Nxc3 {[%emt 0:02:08]} 27. Nf5 {[%emt 0:04:42]} gxf5 {[%emt 0:
00:00]} 28. Qxf5 {[%emt 0:00:09]} Ne4 {[%emt 0:04:06]} 29. f3 {[%emt 0:07:21]}
Nf6 {[%emt 0:03:26]} 30. Bb2 {[%emt 0:03:54]} Rd5 {[%emt 0:04:19]} 31. Re5 {
[%emt 0:01:00]} Bd7 {[%emt 0:02:46]} 32. Qg5 {[%emt 0:02:46]} Rxe5 {[%emt 0:00:
00]} 33. Bxe5 {[%emt 0:00:10]} h6 {[%emt 0:01:31]} 34. Qd2 {[%emt 0:02:18]} Qd5
{[%emt 0:02:05]} 35. Qe3 {[%emt 0:05:25]} Ng4 {[%emt 0:01:51]} 36. hxg4 {
[%emt 0:02:00]} Qxe5 {[%emt 0:00:09]} 37. Qd3 {[%emt 0:00:35]} Qe1+ {[%emt 0:
00:00]} 38. Kh2 {[%emt 0:00:06]} Be5+ {[%emt 0:00:05]} 39. f4 {[%emt 0:00:13]}
Bxf4+ {[%emt 0:00:12]} 40. g3 {[%emt 0:00:07]} Qd2+ {[%emt 0:00:46]} 0-1

[Event "44th Chess Olympiad Women 2022"]
[Site "Chennai"]
[Date "2022.08.07"]
[Round "9.19"]
[White "Cori T., Deysi"]
[Black "Corrales Jimenez, Zenia"]
[Result "0-1"]
[WhiteElo "2371"]
[BlackElo "2143"]
[Annotator "RC"]
[PlyCount "76"]
[EventDate "2022.??.??"]
[TimeControl "60"]

1. Nf3 {[%emt 0:00:13]} d5 {[%emt 0:00:26]} 2. c4 {[%emt 0:00:37]} d4 {[%emt 0:
00:00]} 3. e3 {[%emt 0:01:20]} c5 {[%emt 0:03:03]} 4. b4 {[%emt 0:02:19]} dxe3
{[%emt 0:05:47]} 5. fxe3 {[%emt 0:00:01]} cxb4 {[%emt 0:02:53]} 6. d4 {[%emt 0:
00:00]} Nf6 {[%emt 0:05:38]} 7. Bd3 {[%emt 0:00:28]} g6 {[%emt 0:01:47]} 8. O-O
{[%emt 0:01:36]} Bg7 {[%emt 0:00:50]} 9. a3 {[%emt 0:08:16]} bxa3 {[%emt 0:00:
00]} 10. Qa4+ {[%emt 0:00:05]} Nc6 {[%emt 0:09:33]} 11. d5 {[%emt 0:09:47]} O-O
{[%emt 0:08:01]} 12. Qxa3 {[%emt 0:06:28]} Ng4 {[%emt 0:03:44]} 13. dxc6 {
[%emt 0:04:00]} Bxa1 {[%emt 0:00:43]} 14. Be4 {[%emt 0:00:22]} Bg7 {[%emt 0:00:
00]} 15. cxb7 {[%emt 0:00:29]} Bxb7 {[%emt 0:00:07]} 16. Bxb7 {[%emt 0:00:06]}
Rb8 {[%emt 0:00:06]} 17. Be4 {[%emt 0:01:02]} Qc7 {[%emt 0:01:21]} 18. c5 {
[%emt 0:12:36]} Rbc8 {[%emt 0:08:02]} 19. c6 {[%emt 0:05:43]} Nf6 {[%emt 0:00:
00]} 20. Bd3 {[%emt 0:00:17]} Qxc6 {[%emt 0:00:21]} 21. Qxe7 {[%emt 0:08:45]}
Nd5 {[%emt 0:04:22]} 22. Qh4 {[%emt 0:06:06]} Qb6 {[%emt 0:00:09]} 23. Kh1 {
[%emt 0:16:51]} Nxe3 {[%emt 0:04:55]} 24. Bxe3 {[%emt 0:00:30]} Qxe3 {[%emt 0:
00:00]} 25. Bc4 {[%emt 0:00:04]} h6 {[%emt 0:01:04]} 26. Nbd2 {[%emt 0:00:32]}
Qc5 {[%emt 0:02:35]} 27. Qg3 {[%emt 0:02:07]} a5 {[%emt 0:00:55]} 28. h4 {
[%emt 0:00:52]} a4 {[%emt 0:00:44]} 29. Rc1 {[%emt 0:00:59]} Qh5 {[%emt 0:00:
00]} 30. Qd6 {[%emt 0:08:33]} Rcd8 {[%emt 0:03:14]} 31. Bxf7+ {[%emt 0:01:21]}
Kh7 {[%emt 0:00:20]} 32. Qe7 {[%emt 0:00:04]} Qf5 {[%emt 0:01:26]} 33. Ba2 {
[%emt 0:01:11]} Qf6 {[%emt 0:00:20]} 34. Qe4 {[%emt 0:02:06]} Qf4 {[%emt 0:00:
00]} 35. Rc6 {[%emt 0:01:39]} Rxd2 {[%emt 0:00:39]} 36. Qxg6+ {[%emt 0:00:19]}
Kh8 {[%emt 0:00:01]} 37. Nxd2 {[%emt 0:00:25]} Qxh4+ {[%emt 0:00:25]} 38. Kg1 {
[%emt 0:00:12]} Bd4# {[%emt 0:00:06]} 0-1

[Event "44th Chess Olympiad Women 2022"]
[Site "Chennai"]
[Date "2022.08.07"]
[Round "9.19"]
[White "Guerrero Rodriguez, Alejandra"]
[Black "Chumpitaz, Ann"]
[Result "0-1"]
[WhiteElo "2006"]
[BlackElo "2278"]
[Annotator "RC"]
[PlyCount "62"]
[EventDate "2022.??.??"]
[TimeControl "60"]

1. e4 {[%emt 0:00:29]} c5 {[%emt 0:00:11]} 2. Nf3 {[%emt 0:00:24]} e6 {[%emt 0:
00:00]} 3. c3 {[%emt 0:00:42]} d5 {[%emt 0:00:04]} 4. exd5 {[%emt 0:00:39]}
Qxd5 {[%emt 0:00:04]} 5. d4 {[%emt 0:00:38]} Nf6 {[%emt 0:00:05]} 6. Na3 {
[%emt 0:01:25]} Nc6 {[%emt 0:00:46]} 7. Be3 {[%emt 0:00:41]} cxd4 {[%emt 0:00:
00]} 8. Nb5 {[%emt 0:01:20]} Qd8 {[%emt 0:00:31]} 9. Nbxd4 {[%emt 0:02:33]} Bd7
{[%emt 0:03:42]} 10. Nxc6 {[%emt 0:04:53]} bxc6 {[%emt 0:00:43]} 11. Bd3 {
[%emt 0:03:18]} Nd5 {[%emt 0:07:03]} 12. Bg5 {[%emt 0:06:29]} Qc7 {[%emt 0:00:
00]} 13. O-O {[%emt 0:02:32]} h6 {[%emt 0:01:29]} 14. Bh4 {[%emt 0:01:04]} Bd6
{[%emt 0:00:08]} 15. Re1 {[%emt 0:03:13]} Rb8 {[%emt 0:11:44]} 16. Bf1 {
[%emt 0:11:33]} O-O {[%emt 0:04:50]} 17. c4 {[%emt 0:10:21]} Nf4 {[%emt 0:00:
00]} 18. Re4 {[%emt 0:11:09]} c5 {[%emt 0:01:50]} 19. Qc2 {[%emt 0:19:05]} e5 {
[%emt 0:11:51]} 20. Re3 {[%emt 0:03:43]} f5 {[%emt 0:05:29]} 21. Rd1 {[%emt 0:
00:00]} e4 {[%emt 0:05:31]} 22. Qd2 {[%emt 0:02:09]} Rb6 {[%emt 0:00:08]} 23.
Rb3 {[%emt 0:00:43]} Rfb8 {[%emt 0:03:08]} 24. Rxb6 {[%emt 0:00:58]} Rxb6 {
[%emt 0:00:07]} 25. Be7 {[%emt 0:04:26]} Bxe7 {[%emt 0:02:12]} 26. Qxd7 {
[%emt 0:00:07]} Qxd7 {[%emt 0:00:03]} 27. Rxd7 {[%emt 0:00:09]} Bf6 {[%emt 0:
00:00]} 28. g3 {[%emt 0:01:11]} Ng6 {[%emt 0:01:28]} 29. Nd2 {[%emt 0:01:03]}
Rxb2 {[%emt 0:00:22]} 30. Nb3 {[%emt 0:00:25]} Ne5 {[%emt 0:03:19]} 31. Rxa7 {
[%emt 0:01:16]} e3 {[%emt 0:00:11]} 0-1

[Event "44th Chess Olympiad Women 2022"]
[Site "Chennai"]
[Date "2022.08.07"]
[Round "9.19"]
[White "Hernandez Diaz, Paula Sofia"]
[Black "Bravo Mallco, Kate Azumi"]
[Result "0-1"]
[WhiteElo "1751"]
[BlackElo "1958"]
[Annotator "NA RC"]
[PlyCount "120"]
[EventDate "2022.??.??"]
[TimeControl "60"]

1. c4 {[%emt 0:00:13]} c5 {[%emt 0:01:03]} 2. Nc3 {[%emt 0:00:42]} Nc6 {
[%emt 0:00:06]} 3. g3 {[%emt 0:00:06]} g6 {[%emt 0:00:05]} 4. Bg2 {[%emt 0:00:
00]} Bg7 {[%emt 0:00:02]} 5. d3 {[%emt 0:03:20]} e6 {[%emt 0:00:50]} 6. e4 {
[%emt 0:02:40]} d6 {[%emt 0:03:42]} 7. Nge2 {[%emt 0:01:33]} Nge7 {[%emt 0:00:
00]} 8. O-O {[%emt 0:01:08]} O-O {[%emt 0:06:20]} 9. Be3 {[%emt 0:02:11]} Nd4 {
[%emt 0:00:10]} 10. Rb1 {[%emt 0:00:54]} Rb8 {[%emt 0:06:33]} 11. Qd2 {[%emt 0:
00:00]} a6 {[%emt 0:07:49]} 12. b4 {[%emt 0:05:43]} b6 {[%emt 0:04:21]} 13. Bh6
{[%emt 0:08:40]} Bxh6 {[%emt 0:26:20]} 14. Qxh6 {[%emt 0:00:10]} Bb7 {[%emt 0:
00:00]} 15. Nxd4 {[%emt 0:11:18]} cxd4 {[%emt 0:04:24]} 16. Ne2 {[%emt 0:00:17]
} e5 {[%emt 0:00:21]} 17. a4 {[%emt 0:12:43]} f5 {[%emt 0:03:17]} 18. f3 {
[%emt 0:00:50]} Bc8 {[%emt 0:09:47]} 19. b5 {[%emt 0:05:33]} a5 {[%emt 0:00:09]
} 20. Kh1 {[%emt 0:02:09]} Kh8 {[%emt 0:00:12]} 21. Qd2 {[%emt 0:00:24]} Ng8 {
[%emt 0:00:25]} 22. Rbe1 {[%emt 0:02:57]} Nf6 {[%emt 0:00:27]} 23. Ng1 {
[%emt 0:01:03]} fxe4 {[%emt 0:10:43]} 24. fxe4 {[%emt 0:00:46]} Ng4 {[%emt 0:
00:00]} 25. Rxf8+ {[%emt 0:00:56]} Qxf8 {[%emt 0:00:01]} 26. Rf1 {[%emt 0:00:
00]} Qe7 {[%emt 0:00:02]} 27. Nf3 {[%emt 0:01:20]} Ne3 {[%emt 0:07:03]} 28. Rf2
{[%emt 0:00:17]} Bg4 {[%emt 0:01:19]} 29. Ne1 {[%emt 0:01:05]} Nd1 {[%emt 0:00:
00]} 30. Rf1 {[%emt 0:01:16]} Nc3 {[%emt 0:00:02]} 31. h3 {[%emt 0:05:08]} Bd1
{[%emt 0:02:22]} 32. Nc2 {[%emt 0:01:43]} Bxc2 {[%emt 0:00:02]} 33. Qxc2 {
[%emt 0:00:07]} Rf8 {[%emt 0:00:54]} 34. Re1 {[%emt 0:09:47]} Qg5 {[%emt 0:00:
00]} 35. Kh2 {[%emt 0:00:29]} h5 {[%emt 0:03:32]} 36. h4 {[%emt 0:02:47]} Qe7 {
[%emt 0:00:04]} 37. Bh3 {[%emt 0:02:24]} Kg7 {[%emt 0:01:02]} 38. Rf1 {[%emt 0:
00:00]} Rxf1 {[%emt 0:00:49]} 39. Bxf1 {[%emt 0:00:04]} Qc7 {[%emt 0:00:20]}
40. Be2 {[%emt 0:01:07]} Qc5 {[%emt 0:00:26]} 41. Bd1 {[%emt 0:30:49]} Qa3 {
[%emt 0:31:08]} 42. Qd2 {[%emt 0:00:00]} Qc5 {[%emt 0:00:00]} 43. Qg5 {[%emt 0:
00:00]} Qc7 {[%emt 0:00:00]} 44. Bc2 {[%emt 0:00:00]} d5 {[%emt 0:00:00]} 45.
exd5 {[%emt 0:00:00]} Nxd5 {[%emt 0:00:00]} 46. cxd5 {[%emt 0:00:00]} Qxc2+ {
[%emt 0:00:00]} 47. Kh3 {[%emt 0:00:00]} Qc7 {[%emt 0:00:00]} 48. Kg2 {[%emt 0:
00:00]} Qd6 {[%emt 0:00:00]} 49. Kh2 {[%emt 0:00:00]} Qf6 {[%emt 0:02:19]} 50.
Qxf6+ {[%emt 0:04:51]} Kxf6 {[%emt 0:00:02]} 51. Kg2 {[%emt 0:00:10]} Ke7 {
[%emt 0:00:08]} 52. Kf3 {[%emt 0:00:49]} Kd7 {[%emt 0:00:03]} 53. g4 {[%emt 0:
00:00]} Ke7 {[%emt 0:01:53]} 54. gxh5 {[%emt 0:00:26]} gxh5 {[%emt 0:00:02]}
55. Ke4 {[%emt 0:00:10]} Kd6 {[%emt 0:00:04]} 56. Kf5 {[%emt 0:00:08]} Kxd5 {
[%emt 0:00:03]} 57. Kg5 {[%emt 0:00:05]} e4 {[%emt 0:00:09]} 58. dxe4+ {
[%emt 0:00:05]} Kxe4 {[%emt 0:00:02]} 59. Kxh5 {[%emt 0:00:16]} d3 {[%emt 0:00:
00]} 60. Kh6 {[%emt 0:00:15]} d2 {[%emt 0:00:07]} 0-1

[Event "44th Chess Olympiad Women 2022"]
[Site "Chennai"]
[Date "2022.08.07"]
[Round "9.19"]
[White "Paredes Bustamante, Paula Elizab"]
[Black "Avila Fraire, Ameyalli"]
[Result "1/2-1/2"]
[WhiteElo "2162"]
[BlackElo "1907"]
[Annotator "RC"]
[PlyCount "155"]
[EventDate "2022.??.??"]
[TimeControl "60"]

1. d4 {[%emt 0:00:02]} Nf6 {[%emt 0:00:27]} 2. Bf4 {[%emt 0:00:02]} d5 {
[%emt 0:01:46]} 3. e3 {[%emt 0:00:04]} e6 {[%emt 0:00:14]} 4. Nf3 {[%emt 0:00:
00]} c5 {[%emt 0:00:32]} 5. c3 {[%emt 0:00:06]} Qb6 {[%emt 0:00:29]} 6. Qc2 {
[%emt 0:01:19]} Nc6 {[%emt 0:01:53]} 7. h3 {[%emt 0:00:21]} Be7 {[%emt 0:01:24]
} 8. Nbd2 {[%emt 0:00:05]} O-O {[%emt 0:01:02]} 9. Ne5 {[%emt 0:03:23]} a5 {
[%emt 0:14:42]} 10. g4 {[%emt 0:07:26]} Nd7 {[%emt 0:08:52]} 11. Bd3 {[%emt 0:
00:00]} f5 {[%emt 0:03:15]} 12. gxf5 {[%emt 0:08:20]} Ndxe5 {[%emt 0:00:30]}
13. dxe5 {[%emt 0:00:10]} exf5 {[%emt 0:03:34]} 14. Nf3 {[%emt 0:04:39]} Be6 {
[%emt 0:01:46]} 15. Rg1 {[%emt 0:01:59]} d4 {[%emt 0:11:22]} 16. Ng5 {[%emt 0:
00:00]} Bxg5 {[%emt 0:01:58]} 17. Rxg5 {[%emt 0:00:02]} c4 {[%emt 0:05:13]} 18.
Bxf5 {[%emt 0:03:51]} Bxf5 {[%emt 0:01:13]} 19. Rxf5 {[%emt 0:00:03]} d3 {
[%emt 0:05:46]} 20. Rxf8+ {[%emt 0:00:05]} Rxf8 {[%emt 0:00:05]} 21. Qd2 {
[%emt 0:02:17]} Qc5 {[%emt 0:03:18]} 22. b3 {[%emt 0:01:32]} b5 {[%emt 0:04:27]
} 23. O-O-O {[%emt 0:05:51]} Nxe5 {[%emt 0:02:04]} 24. Bxe5 {[%emt 0:00:09]}
Qxe5 {[%emt 0:00:05]} 25. f4 {[%emt 0:00:09]} Qe6 {[%emt 0:01:12]} 26. h4 {
[%emt 0:04:47]} Rc8 {[%emt 0:02:41]} 27. Kb2 {[%emt 0:03:03]} Qf6 {[%emt 0:00:
00]} 28. e4 {[%emt 0:01:32]} b4 {[%emt 0:05:33]} 29. e5 {[%emt 0:01:42]} bxc3+
{[%emt 0:03:27]} 30. Qxc3 {[%emt 0:00:23]} Qxf4 {[%emt 0:00:52]} 31. Rxd3 {
[%emt 0:00:39]} Rb8 {[%emt 0:07:45]} 32. Rd4 {[%emt 0:00:29]} Qf2+ {[%emt 0:00:
00]} 33. Ka3 {[%emt 0:00:38]} cxb3 {[%emt 0:00:57]} 34. axb3 {[%emt 0:00:05]}
Qf8+ {[%emt 0:00:59]} 35. Rd6 {[%emt 0:00:12]} Qe7 {[%emt 0:01:28]} 36. h5 {
[%emt 0:00:51]} Re8 {[%emt 0:03:02]} 37. Qc4+ {[%emt 0:03:07]} Kh8 {[%emt 0:00:
00]} 38. Qc5 {[%emt 0:00:42]} h6 {[%emt 0:01:45]} 39. e6 {[%emt 0:05:24]} Qf6 {
[%emt 0:00:49]} 40. Ka2 {[%emt 0:09:38]} Qg5 {[%emt 0:00:35]} 41. Rd5 {[%emt 0:
00:00]} Qg2+ {[%emt 0:08:32]} 42. Ka3 {[%emt 0:00:13]} Qe4 {[%emt 0:03:03]} 43.
Re5 {[%emt 0:00:37]} Qh1 {[%emt 0:00:40]} 44. Kb2 {[%emt 0:05:16]} Qg2+ {
[%emt 0:01:47]} 45. Kc3 {[%emt 0:02:05]} Rd8 {[%emt 0:02:02]} 46. Qe3 {[%emt 0:
00:00]} Rc8+ {[%emt 0:03:58]} 47. Rc5 {[%emt 0:00:06]} Rxc5+ {[%emt 0:02:12]}
48. Qxc5 {[%emt 0:00:02]} Qh3+ {[%emt 0:00:07]} 49. Kb2 {[%emt 0:00:20]} Qxe6 {
[%emt 0:00:31]} 50. Qxa5 {[%emt 0:00:02]} Qe2+ {[%emt 0:01:57]} 51. Ka3 {
[%emt 0:00:13]} Qd1 {[%emt 0:02:33]} 52. Qa8+ {[%emt 0:02:21]} Kh7 {[%emt 0:00:
00]} 53. Qe4+ {[%emt 0:00:02]} Kh8 {[%emt 0:02:50]} 54. Qe8+ {[%emt 0:00:03]}
Kh7 {[%emt 0:00:10]} 55. Qg6+ {[%emt 0:00:01]} Kh8 {[%emt 0:00:30]} 56. b4 {
[%emt 0:00:20]} Qa1+ {[%emt 0:00:29]} 57. Kb3 {[%emt 0:00:02]} Qd1+ {[%emt 0:
00:00]} 58. Kc4 {[%emt 0:00:25]} Qe2+ {[%emt 0:00:09]} 59. Kc5 {[%emt 0:00:19]}
Qe3+ {[%emt 0:00:52]} 60. Kb5 {[%emt 0:00:57]} Qe2+ {[%emt 0:01:58]} 61. Ka5 {
[%emt 0:00:42]} Qa2+ {[%emt 0:00:59]} 62. Kb6 {[%emt 0:00:05]} Qf2+ {[%emt 0:
00:00]} 63. Kb7 {[%emt 0:00:59]} Qf3+ {[%emt 0:00:54]} 64. Qc6 {[%emt 0:01:32]}
Qf7+ {[%emt 0:00:45]} 65. Kb6 {[%emt 0:04:08]} Qf2+ {[%emt 0:01:16]} 66. Qc5 {
[%emt 0:00:05]} Qf6+ {[%emt 0:00:07]} 67. Ka7 {[%emt 0:02:18]} Qf7+ {[%emt 0:
00:00]} 68. Ka6 {[%emt 0:03:11]} Qa2+ {[%emt 0:00:52]} 69. Qa5 {[%emt 0:01:11]}
Qe6+ {[%emt 0:00:44]} 70. Qb6 {[%emt 0:00:02]} Qa2+ {[%emt 0:00:19]} 71. Kb7 {
[%emt 0:00:08]} Qf7+ {[%emt 0:01:33]} 72. Ka8 {[%emt 0:02:28]} Qd5+ {[%emt 0:
00:00]} 73. Qb7 {[%emt 0:00:20]} Qa2+ {[%emt 0:00:47]} 74. Kb8 {[%emt 0:01:18]}
Qh2+ {[%emt 0:00:06]} 75. Ka8 {[%emt 0:03:51]} Qa2+ {[%emt 0:00:16]} 76. Kb8 {
[%emt 0:00:08]} Qh2+ {[%emt 0:00:05]} 77. Ka7 {[%emt 0:00:22]} Qa2+ {[%emt 0:
00:00]} 78. Kb8 {[%emt 0:01:05]} 1/2-1/2